[Event "9th Amsterdam Science Park B 2019"]
[Site "Amsterdam"]
[Date "2019.07.12"]
[Round "7.9"]
[White "Boons, Joris"]
[Black "Van Rijs, Tim"]
[Result "1-0"]
[ECO "B94"]
[WhiteElo "1512"]
[BlackElo "1304"]
[Annotator "NA"]
[PlyCount "57"]
[EventDate "2019.07.06"]
[EventType "swiss"]
[EventCountry "NED"]
[SourceTitle "playchess.com"]
[Source "ChessBase"]
[SourceQuality "1"]
[TimeControl "40/5400+30:1800+30"]

1. e4 {[%emt 0:00:00]} c5 {[%emt 0:00:00]} 2. Nf3 {[%emt 0:00:00]} d6 {[%emt 0:00:00]} 3. d4 {[%emt 0:00:00]} cxd4 {[%emt 0:00:00]} 4. Nxd4 {[%emt 0:00:00]} Nf6 {[%emt 0:00:05]} 5. Nc3 {[%emt 0:00:02]} a6 {[%emt 0:00:05]} 6. Bg5 {[%emt 0:01:28]} e5 {[%emt 0:00:24]} 7. Nb3 {[%emt 0:00:55]} Be7 {[%emt 0:01:36]} 8. Be2 {[%emt 0:00:36]} Be6 {[%emt 0:01:01]} 9. f4 {[%emt 0:03:50]} O-O {[%emt 0:05:04]} 10. f5 {[%emt 0:00:06]} Bd7 {[%emt 0:00:36]} 11. Qd2 {[%emt 0:01:04]} h6 {[%emt 0:00:42]} 12. Bxf6 {[%emt 0:05:25]} Bxf6 {[%emt 0:00:14]} 13. Qxd6 {[%emt 0:00:12]} Bc6 {[%emt 0:03:04]} 14. Qc5 {[%emt 0:00:18]} Nd7 {[%emt 0:01:19]} 15. Qf2 {[%emt 0:02:15]} Qb6 {[%emt 0:04:54]} 16. Qxb6 {[%emt 0:06:07]} Nxb6 {[%emt 0:00:52]} 17. O-O-O {[%emt 0:00:04]} Rad8 {[%emt 0:03:34]} 18. Na5 {[%emt 0:04:54]} Bg5+ {[%emt 0:06:08]} 19. Kb1 {[%emt 0:00:03]} Na4 {[%emt 0:03:22]} 20. Nxa4 {[%emt 0:08:03]} Bxa4 {[%emt 0:00:30]} 21. b3 {[%emt 0:00:18]} Bd2 {[%emt 0:01:09]} 22. Nxb7 {[%emt 0:01:06]} Bc6 {[%emt 0:06:04]} 23. Nxd8 {[%emt 0:01:01]} Rxd8 {[%emt 0:00:08]} 24. Bxa6 {[%emt 0:07:08]} Bxe4 {[%emt 0:00:26]} 25. Rhf1 {[%emt 0:08:30]} Bxg2 {[%emt 0:02:09]} 26. Rf2 {[%emt 0:00:39]} Bh3 {[%emt 0:02:23]} 27. Rfxd2 {[%emt 0:00:09]} Rxd2 {[%emt 0:00:19]} 28. Rxd2 {[%emt 0:00:02]} Bxf5 {[%emt 0:00:11]} 29. Bd3 {[%emt 0:00:14]} 1-0

[Event "9th Amsterdam Science Park B 2019"]
[Site "Amsterdam"]
[Date "2019.07.12"]
[Round "7.10"]
[White "Van Duijl, Henri"]
[Black "Belozerova, Olga"]
[Result "1/2-1/2"]
[ECO "C07"]
[WhiteElo "1495"]
[BlackElo "1276"]
[Annotator "NA"]
[PlyCount "100"]
[EventDate "2019.07.06"]
[EventType "swiss"]
[EventCountry "NED"]
[SourceTitle "playchess.com"]
[Source "ChessBase"]
[SourceQuality "1"]
[TimeControl "40/5400+30:1800+30"]

1. e4 {[%emt 0:00:00]} e6 {[%emt 0:00:00]} 2. d4 {[%emt 0:00:00]} d5 {[%emt 0:00:00]} 3. Nd2 {[%emt 0:00:18]} c5 {[%emt 0:00:11]} 4. c3 {[%emt 0:00:23]} cxd4 {[%emt 0:00:13]} 5. cxd4 {[%emt 0:00:09]} dxe4 {[%emt 0:00:11]} 6. Nxe4 {[%emt 0:00:10]} Nf6 {[%emt 0:00:22]} 7. Nc3 {[%emt 0:01:15]} Nc6 {[%emt 0:00:23]} 8. Nf3 {[%emt 0:01:19]} Be7 {[%emt 0:00:46]} 9. Bd3 {[%emt 0:04:17]} O-O {[%emt 0:01:11]} 10. O-O {[%emt 0:00:19]} b6 {[%emt 0:01:15]} 11. h3 {[%emt 0:04:38]} Bb7 {[%emt 0:00:36]} 12. Be3 {[%emt 0:00:31]} Rc8 {[%emt 0:02:53]} 13. Rc1 {[%emt 0:00:35]} h6 {[%emt 0:01:36]} 14. a3 {[%emt 0:03:41]} Nd5 {[%emt 0:02:49]} 15. Nxd5 {[%emt 0:01:51]} Qxd5 {[%emt 0:00:38]} 16. Qe2 {[%emt 0:16:58]} Rfd8 {[%emt 0:06:10]} 17. Rfd1 {[%emt 0:02:08]} Qd6 {[%emt 0:06:27]} 18. Bb1 {[%emt 0:15:05]} Na5 {[%emt 0:06:35]} 19. Qd3 {[%emt 0:01:50]} f5 {[%emt 0:01:19]} 20. Bd2 {[%emt 0:08:21]} Be4 {[%emt 0:01:29]} 21. Qe2 {[%emt 0:03:03]} Bxb1 {[%emt 0:00:38]} 22. Bb4 {[%emt 0:03:29]} Qd7 {[%emt 0:03:29]} 23. Bxe7 {[%emt 0:03:54]} Qxe7 {[%emt 0:00:13]} 24. Rxc8 {[%emt 0:02:46]} Rxc8 {[%emt 0:00:13]} 25. Rxb1 {[%emt 0:00:08]} Qd6 {[%emt 0:05:50]} 26. Rd1 {[%emt 0:04:25]} Qd5 {[%emt 0:08:33]} 27. Ne5 {[%emt 0:04:32]} Nc6 {[%emt 0:05:30]} 28. Ng6 {[%emt 0:05:05]} Re8 {[%emt 0:04:31]} 29. Nf4 {[%emt 0:03:55]} Qd7 {[%emt 0:00:49]} 30. Qc4 {[%emt 0:03:19]} Kh7 {[%emt 0:03:41]} 31. d5 {[%emt 0:01:44]} e5 {[%emt 0:08:24]} 32. Qxc6 {[%emt 0:01:54]} Qxc6 {[%emt 0:00:28]} 33. dxc6 {[%emt 0:00:06]} exf4 {[%emt 0:00:08]} 34. b4 {[%emt 0:01:02]} a6 {[%emt 0:01:14]} 35. a4 {[%emt 0:00:28]} b5 {[%emt 0:00:26]} 36. axb5 {[%emt 0:01:02]} axb5 {[%emt 0:00:05]} 37. Rd5 {[%emt 0:00:25]} Re6 {[%emt 0:01:28]} 38. Rxf5 {[%emt 0:00:54]} Rxc6 {[%emt 0:00:10]} 39. Rxb5 {[%emt 0:00:37]} Rc4 {[%emt 0:00:55]} 40. Rb8 {[%emt 0:01:37]} g5 {[%emt 0:01:08]} 41. Rb6 {[%emt 0:30:23]} h5 {[%emt 0:30:38]} 42. Kf1 {[%emt 0:00:32]} g4 {[%emt 0:02:16]} 43. b5 {[%emt 0:01:00]} gxh3 {[%emt 0:00:35]} 44. gxh3 {[%emt 0:00:17]} Rc3 {[%emt 0:01:07]} 45. Kg2 {[%emt 0:01:17]} h4 {[%emt 0:01:30]} 46. Rc6 {[%emt 0:00:09]} f3+ {[%emt 0:00:37]} 47. Kh2 {[%emt 0:00:00]} Rb3 {[%emt 0:00:00]} 48. b6 {[%emt 0:00:00]} Rb2 {[%emt 0:00:00]} 49. Kg1 {[%emt 0:00:00]} Rb1+ {[%emt 0:00:00]} 50. Kh2 {[%emt 0:00:00]} Rb2 {[%emt 0:00:00]} 1/2-1/2

[Event "9th Amsterdam Science Park B 2019"]
[Site "Amsterdam"]
[Date "2019.07.13"]
[Round "8.1"]
[White "Emans, Job"]
[Black "Duson, Robin"]
[Result "1-0"]
[ECO "E32"]
[WhiteElo "1989"]
[BlackElo "1936"]
[Annotator "NA"]
[PlyCount "131"]
[EventDate "2019.07.06"]
[EventType "swiss"]
[EventCountry "NED"]
[SourceTitle "playchess.com"]
[Source "ChessBase"]
[SourceQuality "1"]
[TimeControl "40/5400+30:1800+30"]

1. d4 {[%emt 0:00:00]} Nf6 {[%emt 0:00:00]} 2. c4 {[%emt 0:00:00]} e6 {[%emt 0:00:00]} 3. Nc3 {[%emt 0:00:00]} Bb4 {[%emt 0:00:00]} 4. Qc2 {[%emt 0:00:00]} O-O {[%emt 0:00:08]} 5. a3 {[%emt 0:00:23]} Bxc3+ {[%emt 0:00:09]} 6. Qxc3 {[%emt 0:00:05]} d5 {[%emt 0:00:08]} 7. Bg5 {[%emt 0:01:47]} dxc4 {[%emt 0:00:20]} 8. Qxc4 {[%emt 0:00:30]} b6 {[%emt 0:00:25]} 9. Nf3 {[%emt 0:01:17]} Ba6 {[%emt 0:00:31]} 10. Qa4 {[%emt 0:00:54]} c5 {[%emt 0:00:19]} 11. dxc5 {[%emt 0:07:18]} bxc5 {[%emt 0:00:45]} 12. Rd1 {[%emt 0:01:46]} Qb6 {[%emt 0:00:10]} 13. Bxf6 {[%emt 0:16:49]} gxf6 {[%emt 0:00:08]} 14. g3 {[%emt 0:00:55]} Qxb2 {[%emt 0:02:49]} 15. Nd2 {[%emt 0:08:29]} Qe5 {[%emt 0:07:40]} 16. Qg4+ {[%emt 0:05:21]} Kh8 {[%emt 0:00:57]} 17. Bg2 {[%emt 0:00:57]} f5 {[%emt 0:03:17]} 18. Qh5 {[%emt 0:03:15]} Nd7 {[%emt 0:03:16]} 19. Bxa8 {[%emt 0:00:55]} Rxa8 {[%emt 0:00:09]} 20. Qf3 {[%emt 0:00:37]} Rb8 {[%emt 0:02:20]} 21. Qe3 {[%emt 0:04:36]} Qxe3 {[%emt 0:04:50]} 22. fxe3 {[%emt 0:00:03]} Rb2 {[%emt 0:03:56]} 23. Nc4 {[%emt 0:20:13]} Bxc4 {[%emt 0:00:20]} 24. Rxd7 {[%emt 0:00:02]} Rxe2+ {[%emt 0:00:27]} 25. Kd1 {[%emt 0:00:17]} Ra2 {[%emt 0:02:31]} 26. Re1 {[%emt 0:01:55]} Rxa3 {[%emt 0:01:17]} 27. Rxf7 {[%emt 0:01:01]} Ra2 {[%emt 0:15:44]} 28. Rc7 {[%emt 0:09:14]} Bb3+ {[%emt 0:00:36]} 29. Kc1 {[%emt 0:00:04]} c4 {[%emt 0:00:24]} 30. Kb1 {[%emt 0:01:34]} Rd2 {[%emt 0:06:03]} 31. Rxa7 {[%emt 0:02:12]} c3 {[%emt 0:00:50]} 32. Rc1 {[%emt 0:01:50]} Rd1 {[%emt 0:07:13]} 33. Ra3 {[%emt 0:01:47]} Rxc1+ {[%emt 0:00:31]} 34. Kxc1 {[%emt 0:00:07]} Bd5 {[%emt 0:00:06]} 35. Rxc3 {[%emt 0:00:42]} Kg7 {[%emt 0:00:17]} 36. Kd2 {[%emt 0:00:48]} Kg6 {[%emt 0:00:50]} 37. Rc7 {[%emt 0:01:05]} h6 {[%emt 0:00:27]} 38. Kc3 {[%emt 0:04:15]} Kg5 {[%emt 0:01:52]} 39. Rg7+ {[%emt 0:01:10]} Kf6 {[%emt 0:00:07]} 40. Rh7 {[%emt 0:00:34]} Kg6 {[%emt 0:00:53]} 41. Rh8 {[%emt 0:30:42]} Kg7 {[%emt 0:30:26]} 42. Rd8 {[%emt 0:01:01]} Kf6 {[%emt 0:00:23]} 43. Kd4 {[%emt 0:00:14]} Bf3 {[%emt 0:02:33]} 44. Kc5 {[%emt 0:02:09]} Ke5 {[%emt 0:01:40]} 45. Rd4 {[%emt 0:00:00]} Be4 {[%emt 0:00:00]} 46. Kc4 {[%emt 0:00:00]} Bf3 {[%emt 0:00:00]} 47. Kd3 {[%emt 0:00:00]} Be4+ {[%emt 0:00:00]} 48. Ke2 {[%emt 0:00:00]} Kf6 {[%emt 0:00:00]} 49. h4 {[%emt 0:00:00]} Bg2 {[%emt 0:00:00]} 50. Rb4 {[%emt 0:00:00]} h5 {[%emt 0:00:00]} 51. Rb5 {[%emt 0:00:00]} Bd5 {[%emt 0:00:00]} 52. Kd3 {[%emt 0:00:00]} Ke5 {[%emt 0:00:00]} 53. Ra5 {[%emt 0:00:00]} Kf6 {[%emt 0:00:00]} 54. Kd4 {[%emt 0:00:00]} Bf3 {[%emt 0:00:00]} 55. Rb5 {[%emt 0:00:00]} Be2 {[%emt 0:00:00]} 56. Rc5 {[%emt 0:00:00]} Bf3 {[%emt 0:00:00]} 57. Ra5 {[%emt 0:00:00]} Bg2 {[%emt 0:00:00]} 58. Ra7 {[%emt 0:00:00]} Bf3 {[%emt 0:00:00]} 59. Rc7 {[%emt 0:00:00]} Be4 {[%emt 0:00:00]} 60. Rc8 {[%emt 0:00:00]} Bf3 {[%emt 0:00:00]} 61. Rb8 {[%emt 0:00:00]} Be4 {[%emt 0:00:00]} 62. Rh8 {[%emt 0:00:27]} Kg6 {[%emt 0:00:00]} 63. Ke5 {[%emt 0:00:20]} Bd5 {[%emt 0:00:00]} 64. Rf8 {[%emt 0:00:46]} Bb3 {[%emt 0:00:00]} 65. Rf6+ {[%emt 0:00:27]} Kg7 {[%emt 0:00:00]} 66. Rxe6 {[%emt 0:00:29]} 1-0

[Event "9th Amsterdam Science Park B 2019"]
[Site "Amsterdam"]
[Date "2019.07.13"]
[Round "8.2"]
[White "Roemersma, Aad"]
[Black "Eveleens, Wim"]
[Result "1-0"]
[ECO "B01"]
[WhiteElo "2029"]
[BlackElo "2005"]
[Annotator "NA"]
[PlyCount "63"]
[EventDate "2019.07.06"]
[EventType "swiss"]
[EventCountry "NED"]
[SourceTitle "playchess.com"]
[Source "ChessBase"]
[SourceQuality "1"]
[TimeControl "40/5400+30:1800+30"]

1. e4 {[%emt 0:00:00]} d5 {[%emt 0:00:00]} 2. exd5 {[%emt 0:00:00]} Qxd5 {[%emt 0:00:00]} 3. d4 {[%emt 0:00:53]} Nf6 {[%emt 0:00:13]} 4. Nf3 {[%emt 0:01:18]} c6 {[%emt 0:03:30]} 5. c4 {[%emt 0:02:46]} Qd8 {[%emt 0:00:04]} 6. Nc3 {[%emt 0:00:29]} g6 {[%emt 0:00:04]} 7. Bd3 {[%emt 0:02:26]} Bg7 {[%emt 0:02:52]} 8. h3 {[%emt 0:01:53]} O-O {[%emt 0:00:37]} 9. O-O {[%emt 0:00:14]} Na6 {[%emt 0:01:18]} 10. Be3 {[%emt 0:00:22]} Nc7 {[%emt 0:00:43]} 11. Qd2 {[%emt 0:00:40]} Nce8 {[%emt 0:00:35]} 12. Rfe1 {[%emt 0:02:03]} Nd6 {[%emt 0:01:57]} 13. Bh6 {[%emt 0:09:49]} Nf5 {[%emt 0:11:19]} 14. Bxg7 {[%emt 0:01:25]} Kxg7 {[%emt 0:00:17]} 15. Bc2 {[%emt 0:01:02]} Nd6 {[%emt 0:03:34]} 16. b3 {[%emt 0:02:12]} Bf5 {[%emt 0:04:15]} 17. c5 {[%emt 0:00:38]} Nb5 {[%emt 0:02:44]} 18. Nxb5 {[%emt 0:03:12]} Bxc2 {[%emt 0:00:09]} 19. Qxc2 {[%emt 0:00:15]} cxb5 {[%emt 0:00:04]} 20. Qe2 {[%emt 0:00:29]} Nd5 {[%emt 0:06:59]} 21. Qxb5 {[%emt 0:00:53]} Qc7 {[%emt 0:01:04]} 22. Qe2 {[%emt 0:03:19]} f6 {[%emt 0:01:48]} 23. b4 {[%emt 0:02:39]} h5 {[%emt 0:09:05]} 24. a3 {[%emt 0:05:16]} Rf7 {[%emt 0:02:23]} 25. Nd2 {[%emt 0:03:12]} Rd8 {[%emt 0:01:53]} 26. Nc4 {[%emt 0:02:13]} Nf4 {[%emt 0:16:30]} 27. Qe4 {[%emt 0:01:49]} h4 {[%emt 0:15:15]} 28. Rad1 {[%emt 0:10:48]} Rd5 {[%emt 0:01:28]} 29. Nd6 {[%emt 0:05:27]} Nxh3+ {[%emt 0:02:53]} 30. Kf1 {[%emt 0:00:23]} Rxd6 {[%emt 0:06:23]} 31. cxd6 {[%emt 0:00:30]} Qc4+ {[%emt 0:02:51]} 32. Qd3 1-0

[Event "9th Amsterdam Science Park B 2019"]
[Site "Amsterdam"]
[Date "2019.07.13"]
[Round "8.3"]
[White "Dambrink, Wouter"]
[Black "Van `t Schip, Richard"]
[Result "1/2-1/2"]
[ECO "D43"]
[WhiteElo "1931"]
[BlackElo "2003"]
[Annotator "NA"]
[PlyCount "128"]
[EventDate "2019.07.06"]
[EventType "swiss"]
[EventCountry "NED"]
[SourceTitle "playchess.com"]
[Source "ChessBase"]
[SourceQuality "1"]
[TimeControl "40/5400+30:1800+30"]

1. d4 {[%emt 0:00:00]} d5 {[%emt 0:00:00]} 2. Nf3 {[%emt 0:00:00]} Nf6 {[%emt 0:01:06]} 3. c4 {[%emt 0:00:00]} c6 {[%emt 0:00:28]} 4. Nc3 {[%emt 0:00:00]} e6 {[%emt 0:01:25]} 5. g3 {[%emt 0:00:05]} Nbd7 {[%emt 0:00:57]} 6. Bg2 {[%emt 0:00:20]} Bd6 {[%emt 0:01:53]} 7. O-O {[%emt 0:00:19]} O-O {[%emt 0:02:25]} 8. Nd2 {[%emt 0:00:07]} h6 {[%emt 0:08:09]} 9. e4 {[%emt 0:00:08]} dxe4 {[%emt 0:04:02]} 10. Ndxe4 {[%emt 0:00:07]} Nxe4 {[%emt 0:01:49]} 11. Nxe4 {[%emt 0:00:05]} Be7 {[%emt 0:01:12]} 12. Bf4 {[%emt 0:03:02]} Nf6 {[%emt 0:11:46]} 13. Nc3 {[%emt 0:01:35]} Qd7 {[%emt 0:13:34]} 14. Be5 {[%emt 0:06:43]} b6 {[%emt 0:04:58]} 15. Qf3 {[%emt 0:12:20]} Bb7 {[%emt 0:00:24]} 16. Rfd1 {[%emt 0:02:56]} Rfd8 {[%emt 0:05:18]} 17. a4 {[%emt 0:09:01]} Qc8 {[%emt 0:14:51]} 18. a5 {[%emt 0:04:43]} bxa5 {[%emt 0:05:05]} 19. Rxa5 {[%emt 0:03:46]} Nd7 {[%emt 0:00:13]} 20. Bf4 {[%emt 0:07:21]} Nb6 {[%emt 0:04:09]} 21. c5 {[%emt 0:14:55]} Nd5 {[%emt 0:00:09]} 22. Be5 {[%emt 0:07:45]} f6 {[%emt 0:03:51]} 23. Nxd5 {[%emt 0:00:40]} Rxd5 {[%emt 0:01:59]} 24. Bf4 {[%emt 0:00:30]} Qd8 {[%emt 0:00:53]} 25. Qc3 {[%emt 0:02:50]} Rd7 {[%emt 0:01:46]} 26. Qb3 {[%emt 0:03:22]} Kf8 {[%emt 0:04:05]} 27. Rda1 {[%emt 0:05:49]} a6 {[%emt 0:02:22]} 28. Qxe6 {[%emt 0:06:27]} Rxd4 {[%emt 0:00:52]} 29. Qb3 {[%emt 0:04:57]} Qd7 {[%emt 0:00:44]} 30. Bf1 {[%emt 0:01:32]} Rd8 {[%emt 0:00:55]} 31. Be3 {[%emt 0:01:15]} Rd5 {[%emt 0:00:38]} 32. Bc4 {[%emt 0:00:56]} Rd1+ {[%emt 0:02:12]} 33. Rxd1 {[%emt 0:01:24]} Qxd1+ {[%emt 0:00:07]} 34. Qxd1 {[%emt 0:00:16]} Rxd1+ {[%emt 0:00:07]} 35. Kg2 {[%emt 0:00:07]} Rb1 {[%emt 0:00:58]} 36. Bxa6 {[%emt 0:01:48]} Rxb2 {[%emt 0:00:33]} 37. Bxb7 {[%emt 0:00:19]} Rxb7 {[%emt 0:00:07]} 38. Ra8+ {[%emt 0:00:08]} Kf7 {[%emt 0:00:45]} 39. Rc8 {[%emt 0:00:04]} Ke6 {[%emt 0:01:16]} 40. Rxc6+ {[%emt 0:00:17]} Kd7 {[%emt 0:00:18]} 41. Ra6 {[%emt 0:08:07]} Rc7 {[%emt 0:00:59]} 42. Ra8 {[%emt 0:06:25]} Ke6 {[%emt 0:05:59]} 43. Ra5 {[%emt 0:04:22]} h5 {[%emt 0:11:32]} 44. Kf3 {[%emt 0:02:05]} f5 {[%emt 0:06:53]} 45. h4 {[%emt 0:01:47]} Rc6 {[%emt 0:05:53]} 46. Kf4 {[%emt 0:02:00]} g6 {[%emt 0:00:39]} 47. Rb5 {[%emt 0:02:26]} Kd5 {[%emt 0:00:57]} 48. Rb6 {[%emt 0:00:50]} Bf6 {[%emt 0:00:05]} 49. f3 {[%emt 0:03:44]} Re6 {[%emt 0:01:05]} 50. Bf2 {[%emt 0:02:19]} Rc6 {[%emt 0:00:25]} 51. Rxc6 {[%emt 0:00:43]} Kxc6 {[%emt 0:00:09]} 52. Bg1 {[%emt 0:02:22]} Kd5 {[%emt 0:00:07]} 53. Be3 {[%emt 0:00:25]} Kc6 {[%emt 0:00:27]} 54. Bg1 {[%emt 0:00:24]} Kd5 {[%emt 0:00:11]} 55. Bf2 {[%emt 0:00:11]} Kc6 {[%emt 0:00:09]} 56. g4 {[%emt 0:00:18]} fxg4 {[%emt 0:01:02]} 57. fxg4 {[%emt 0:00:24]} hxg4 {[%emt 0:00:12]} 58. Kxg4 {[%emt 0:00:09]} Kd5 {[%emt 0:00:14]} 59. Be3 {[%emt 0:00:22]} Be7 {[%emt 0:00:18]} 60. Bg1 {[%emt 0:00:33]} Kc6 {[%emt 0:00:17]} 61. Bd4 {[%emt 0:01:14]} Kd5 {[%emt 0:00:25]} 62. Be3 {[%emt 0:00:30]} Kc6 {[%emt 0:00:14]} 63. Bf2 {[%emt 0:00:28]} Kd5 {[%emt 0:00:06]} 64. Kf4 {[%emt 0:00:42]} Bxh4 {[%emt 0:00:10]} 1/2-1/2

[Event "9th Amsterdam Science Park B 2019"]
[Site "Amsterdam"]
[Date "2019.07.13"]
[Round "8.4"]
[White "Van Amerongen-Jansen, Peggy"]
[Black "Aalten, Evert"]
[Result "1/2-1/2"]
[ECO "B54"]
[WhiteElo "2002"]
[BlackElo "1931"]
[Annotator "NA"]
[PlyCount "118"]
[EventDate "2019.07.06"]
[EventType "swiss"]
[EventCountry "NED"]
[SourceTitle "playchess.com"]
[Source "ChessBase"]
[SourceQuality "1"]
[TimeControl "40/5400+30:1800+30"]

1. e4 {[%emt 0:00:00]} c5 {[%emt 0:00:00]} 2. Nf3 {[%emt 0:00:00]} d6 {[%emt 0:00:00]} 3. d4 {[%emt 0:01:08]} cxd4 {[%emt 0:00:13]} 4. Nxd4 {[%emt 0:00:03]} Nf6 {[%emt 0:00:16]} 5. Bd3 {[%emt 0:04:10]} g6 {[%emt 0:05:03]} 6. O-O {[%emt 0:01:17]} Bg7 {[%emt 0:00:23]} 7. h3 {[%emt 0:04:31]} O-O {[%emt 0:01:27]} 8. Be3 {[%emt 0:02:41]} Nc6 {[%emt 0:01:59]} 9. c3 {[%emt 0:04:09]} e5 {[%emt 0:09:41]} 10. Nxc6 {[%emt 0:16:14]} bxc6 {[%emt 0:00:32]} 11. Nd2 {[%emt 0:00:59]} Qe7 {[%emt 0:10:20]} 12. b4 {[%emt 0:10:15]} a5 {[%emt 0:17:10]} 13. bxa5 {[%emt 0:17:10]} Rxa5 {[%emt 0:06:40]} 14. Nc4 {[%emt 0:00:58]} Ra6 {[%emt 0:01:21]} 15. Nb6 {[%emt 0:06:33]} Ra5 {[%emt 0:02:39]} 16. a4 {[%emt 0:00:33]} Be6 {[%emt 0:01:18]} 17. Qd2 {[%emt 0:05:32]} Nh5 {[%emt 0:03:41]} 18. Rfc1 {[%emt 0:05:41]} f5 {[%emt 0:01:01]} 19. f3 {[%emt 0:03:36]} fxe4 {[%emt 0:00:47]} 20. fxe4 {[%emt 0:00:30]} Nf4 {[%emt 0:00:55]} 21. Bf1 {[%emt 0:02:59]} Kh8 {[%emt 0:02:29]} 22. c4 {[%emt 0:00:49]} Ra7 {[%emt 0:01:02]} 23. Kh2 {[%emt 0:03:06]} Bg8 {[%emt 0:03:26]} 24. Rd1 {[%emt 0:03:41]} Ne6 {[%emt 0:09:18]} 25. Qxd6 {[%emt 0:00:33]} Nd4 {[%emt 0:00:09]} 26. Qxe7 {[%emt 0:00:20]} Rxe7 {[%emt 0:00:02]} 27. a5 {[%emt 0:01:25]} Ra7 {[%emt 0:00:49]} 28. Bxd4 {[%emt 0:02:09]} exd4 {[%emt 0:00:09]} 29. c5 {[%emt 0:00:06]} Be5+ {[%emt 0:00:18]} 30. Kh1 {[%emt 0:00:29]} Rf2 {[%emt 0:03:02]} 31. Nc4 {[%emt 0:00:19]} Bxc4 {[%emt 0:00:22]} 32. Bxc4 {[%emt 0:00:04]} Rc2 {[%emt 0:00:20]} 33. Bd3 {[%emt 0:00:40]} Rxc5 {[%emt 0:00:18]} 34. a6 {[%emt 0:00:01]} Rc3 {[%emt 0:05:32]} 35. Rac1 {[%emt 0:00:53]} Kg7 {[%emt 0:01:03]} 36. Rb1 {[%emt 0:00:27]} Kf6 {[%emt 0:00:46]} 37. Be2 {[%emt 0:01:30]} d3 {[%emt 0:03:50]} 38. Bxd3 {[%emt 0:01:01]} Bd4 {[%emt 0:00:36]} 39. Be2 {[%emt 0:00:14]} Ke5 {[%emt 0:01:41]} 40. Bd3 {[%emt 0:00:54]} c5 {[%emt 0:02:32]} 41. Rb7 {[%emt 0:31:49]} Rxd3 {[%emt 0:31:26]} 42. Rxd3 {[%emt 0:00:32]} Rxa6 {[%emt 0:00:09]} 43. Rd1 {[%emt 0:00:46]} h5 {[%emt 0:01:00]} 44. Re7+ {[%emt 0:00:40]} Kf6 {[%emt 0:00:41]} 45. Re8 {[%emt 0:00:00]} Kf7 {[%emt 0:00:00]} 46. Rd8 {[%emt 0:00:00]} Ke6 {[%emt 0:00:00]} 47. R8xd4 {[%emt 0:00:00]} cxd4 {[%emt 0:00:00]} 48. Rxd4 {[%emt 0:00:00]} Ke5 {[%emt 0:00:00]} 49. Rb4 {[%emt 0:00:00]} Ra1+ {[%emt 0:00:00]} 50. Kh2 {[%emt 0:00:00]} Re1 {[%emt 0:00:00]} 51. Rb6 {[%emt 0:00:00]} Rxe4 {[%emt 0:00:00]} 52. Rxg6 {[%emt 0:00:00]} h4 {[%emt 0:00:00]} 53. Ra6 {[%emt 0:00:00]} Kf5 {[%emt 0:00:00]} 54. Ra5+ {[%emt 0:00:00]} Kg6 {[%emt 0:00:00]} 55. Kg1 {[%emt 0:00:00]} Rf4 {[%emt 0:00:00]} 56. Ra2 {[%emt 0:00:00]} Kg5 {[%emt 0:00:00]} 57. Kh2 {[%emt 0:00:00]} Rf1 {[%emt 0:00:00]} 58. g4 {[%emt 0:00:00]} hxg3+ {[%emt 0:00:00]} 59. Kxg3 {[%emt 0:00:00]} Rb1 {[%emt 0:00:00]} 1/2-1/2

[Event "9th Amsterdam Science Park B 2019"]
[Site "Amsterdam"]
[Date "2019.07.13"]
[Round "8.5"]
[White "Breedveld, Andre"]
[Black "Sula, Avni"]
[Result "1-0"]
[ECO "A20"]
[WhiteElo "1947"]
[BlackElo "1978"]
[Annotator "NA"]
[PlyCount "79"]
[EventDate "2019.07.06"]
[EventType "swiss"]
[EventCountry "NED"]
[SourceTitle "playchess.com"]
[Source "ChessBase"]
[SourceQuality "1"]
[TimeControl "40/5400+30:1800+30"]

1. c4 {[%emt 0:00:00]} e5 {[%emt 0:00:08]} 2. e3 {[%emt 0:01:16]} Nf6 {[%emt 0:02:44]} 3. a3 {[%emt 0:01:17]} d5 {[%emt 0:05:55]} 4. cxd5 {[%emt 0:03:51]} Nxd5 {[%emt 0:00:55]} 5. Nf3 {[%emt 0:00:56]} Bd6 {[%emt 0:02:45]} 6. Qc2 {[%emt 0:03:07]} Qe7 {[%emt 0:05:12]} 7. d3 {[%emt 0:03:17]} Nc6 {[%emt 0:04:51]} 8. Nbd2 {[%emt 0:02:00]} Nf6 {[%emt 0:02:30]} 9. b4 {[%emt 0:00:32]} Bf5 {[%emt 0:04:05]} 10. Nh4 {[%emt 0:15:05]} Be6 {[%emt 0:02:28]} 11. g3 {[%emt 0:04:59]} Qd7 {[%emt 0:06:54]} 12. h3 {[%emt 0:04:49]} Be7 {[%emt 0:06:11]} 13. Nhf3 {[%emt 0:03:45]} Nd5 {[%emt 0:01:35]} 14. b5 {[%emt 0:06:12]} Nd8 {[%emt 0:02:24]} 15. Nxe5 {[%emt 0:07:54]} Qxb5 {[%emt 0:04:02]} 16. d4 {[%emt 0:01:32]} Qa5 {[%emt 0:04:33]} 17. Bb2 {[%emt 0:02:16]} c6 {[%emt 0:02:19]} 18. e4 {[%emt 0:01:36]} Nb6 {[%emt 0:04:16]} 19. f4 {[%emt 0:11:04]} Qa4 {[%emt 0:10:59]} 20. Qd3 {[%emt 0:01:33]} f6 {[%emt 0:01:55]} 21. Ng4 {[%emt 0:03:31]} f5 {[%emt 0:01:50]} 22. exf5 {[%emt 0:01:01]} Bd5 {[%emt 0:00:12]} 23. Rh2 {[%emt 0:00:35]} O-O {[%emt 0:01:20]} 24. Be2 {[%emt 0:00:51]} Nf7 {[%emt 0:05:57]} 25. Bd1 {[%emt 0:08:14]} Qb5 {[%emt 0:00:27]} 26. Qxb5 {[%emt 0:01:31]} cxb5 {[%emt 0:00:12]} 27. Ne3 {[%emt 0:00:20]} Nd6 {[%emt 0:02:10]} 28. Nxd5 {[%emt 0:00:56]} Nxd5 {[%emt 0:00:04]} 29. Bb3 {[%emt 0:00:14]} Nc4 {[%emt 0:00:34]} 30. Nxc4 {[%emt 0:00:06]} bxc4 {[%emt 0:00:16]} 31. Bxc4 {[%emt 0:00:07]} Rad8 {[%emt 0:01:11]} 32. Re2 {[%emt 0:00:17]} Bf6 {[%emt 0:00:47]} 33. a4 {[%emt 0:01:51]} Kh8 {[%emt 0:06:13]} 34. Ba3 {[%emt 0:01:49]} Ne7 {[%emt 0:05:27]} 35. Bxe7 {[%emt 0:01:00]} Bxe7 {[%emt 0:00:05]} 36. Rxe7 {[%emt 0:00:20]} Rxd4 {[%emt 0:00:03]} 37. Be6 {[%emt 0:01:07]} Re4+ {[%emt 0:00:40]} 38. Kf2 {[%emt 0:00:21]} g6 {[%emt 0:00:19]} 39. Rc1 {[%emt 0:00:13]} gxf5 {[%emt 0:00:38]} 40. Rcc7 1-0